bitfinex-derivatives/quotes_BNBF0:USTF0_20250220
["timestamp","ask_amount","ask_price","bid_price","bid_amount"]
[1740077604317,3.11165437,653.44,652.99,1.13018886]
[1740077604517,3.11165437,653.43,652.99,1.13018886]
[1740077604716,3.11165437,653.42,652.99,1.13018886]
[1740077604921,3.11165437,653.41,652.99,1.13018886]
[1740077605121,3.11165437,653.4,652.99,1.13018886]
[1740077605321,3.11165437,653.39,652.99,1.13018886]
[1740077605522,3.11165437,653.38,652.99,1.13018886]
[1740077605722,3.11165437,653.37,652.99,1.13018886]
[1740077606018,3.11165437,653.36,652.99,1.13018886]
[1740077606222,3.11165437,653.35,652.99,1.13018886]
[1740077606423,5.33346781,653.34,652.99,1.13018886]
[1740077606618,3.11165437,653.33,652.99,1.13018886]
[1740077606820,3.11165437,653.32,652.99,1.13018886]
[1740077607017,2.22181344,653.34,652.99,1.13018886]
[1740077607220,3.10840086,653.33,652.99,1.13018886]
[1740077607421,3.10840086,653.32,652.99,1.13018886]
[1740077607620,2.22181344,653.34,652.99,1.13018886]
[1740077607818,3.10802441,653.33,652.99,1.13018886]
[1740077608024,3.10802441,653.32,653.0,1.13018886]
[1740077608224,2.22181344,653.34,653.0,1.13018886]
[1740077608424,3.10806392,653.33,653.0,1.13018886]
[1740077608625,3.10806392,653.32,653.0,1.13018886]
[1740077608826,1.203,653.63,653.0,1.13018886]
[1740077609025,3.10775162,653.62,653.0,1.13018886]
[1740077609226,3.10775162,653.61,653.0,1.13018886]
[1740077609420,3.10775162,653.6,653.0,1.13018886]
[1740077609622,3.10775162,653.59,653.0,1.13018886]
[1740077609823,3.10775162,653.58,653.0,1.13018886]
[1740077610024,3.10775162,653.57,653.0,1.13018886]
[1740077610225,3.10775162,653.56,653.0,1.13018886]
[1740077610521,3.10775162,653.55,653.0,1.13018886]
[1740077610827,5.32670847,653.54,652.87,1.13018886]
[1740077611126,3.10775162,653.53,652.87,1.13018886]
[1740077611327,3.10775162,653.52,652.87,1.13018886]
[1740077611526,3.10775162,653.51,652.87,1.13018886]
[1740077611826,3.10775162,653.5,652.87,1.13018886]
[1740077612020,1.203,653.63,652.87,1.13018886]
[1740077612021,5.32670847,653.49,652.87,1.13018886]
[1740077612221,3.10775162,653.48,652.87,1.13018886]
[1740077612425,3.10775162,653.47,652.87,1.13018886]
[1740077612620,3.10775162,653.46,652.87,1.13018886]
[1740077612827,3.10775162,653.45,652.87,1.13018886]
[1740077613119,3.10775162,653.44,652.87,1.13018886]
[1740077613427,3.10775162,653.43,652.87,1.13018886]
[1740077613627,3.10775162,653.42,652.89,1.13018886]
[1740077613927,3.10775162,653.41,652.89,1.13018886]
[1740077614126,3.10775162,653.4,652.89,1.13018886]
[1740077614326,3.10775162,653.39,652.89,1.13018886]
[1740077614521,3.10775162,653.38,652.89,1.13018886]
[1740077614725,3.10775162,653.37,652.89,1.13018886]
[1740077614925,3.10775162,653.36,652.89,1.13018886]
[1740077615126,3.10775162,653.35,652.89,1.13018886]
[1740077615328,3.10775162,653.34,652.89,1.13018886]
[1740077615523,3.10775162,653.33,652.89,1.13018886]
[1740077615728,3.10775162,653.32,652.89,1.13018886]
[1740077615925,3.10775162,653.31,652.85,1.13018886]
[1740077616124,3.10662697,653.3,652.85,1.13018886]
[1740077616328,1.203,653.63,652.85,1.13018886]
[1740077616531,3.10666237,653.62,652.85,1.13018886]
[1740077616732,3.10666237,653.61,652.85,1.13018886]
[1740077617034,3.10666237,653.6,652.85,1.13018886]
[1740077617230,3.10666237,653.59,652.85,1.13018886]
[1740077617431,3.10666237,653.58,652.85,1.13018886]
[1740077617731,3.10666237,653.57,652.85,1.13018886]
[1740077618033,3.10666237,653.56,652.85,1.13018886]
[1740077618230,3.10666237,653.55,652.85,1.13018886]
[1740077618427,5.32485779,653.54,652.85,1.13018886]
[1740077618629,3.10666237,653.53,652.85,1.13018886]
[1740077618825,3.10666237,653.52,652.88,1.13018886]
[1740077619031,3.10666237,653.51,652.88,1.13018886]
[1740077619226,3.10666237,653.5,652.88,1.13018886]
[1740077619428,3.10666237,653.49,652.88,1.13018886]
[1740077619632,3.10666237,653.48,652.88,1.13018886]
[1740077619832,2.21819542,653.54,652.88,1.13018886]
[1740077619833,3.10666237,653.47,652.88,1.13018886]
[1740077620034,5.32485779,653.46,652.88,1.13018886]
[1740077620234,3.10666237,653.45,652.88,1.13018886]
[1740077620533,3.10666237,653.44,652.88,1.13018886]
[1740077620726,3.10666237,653.43,652.88,1.13018886]
[1740077620926,3.10666237,653.42,652.88,1.13018886]
[1740077621131,3.10666237,653.41,652.88,1.13018886]
[1740077621433,3.10666237,653.4,652.87,1.13018886]
[1740077621635,3.10666237,653.39,652.87,1.13018886]
[1740077621932,3.10666237,653.38,652.87,1.13018886]
[1740077622129,3.10666237,653.37,652.87,1.13018886]
[1740077622328,3.10666237,653.36,652.87,1.13018886]
[1740077622528,3.10666237,653.35,652.87,1.13018886]
[1740077622733,3.10666237,653.34,652.87,1.13018886]
[1740077622930,2.21819542,653.4,652.87,1.13018886]
[1740077622931,3.10666237,653.33,652.87,1.13018886]
[1740077623131,3.10666237,653.32,652.87,1.13018886]
[1740077623334,2.21819542,653.33,652.89,1.13018886]
[1740077623530,3.10674164,653.32,652.89,1.13018886]
[1740077623730,3.10674164,653.31,652.89,1.13018886]
[1740077623928,2.21819542,653.33,652.89,1.13018886]
[1740077624134,3.1067611,653.32,652.89,1.13018886]
[1740077624335,3.1067611,653.31,652.89,1.13018886]
[1740077624636,2.21819542,653.33,652.89,1.13018886]
[1740077624838,3.1066772,653.32,652.89,1.13018886]
[1740077625036,2.21819542,653.32,652.89,1.13018886]
[1740077626832,1.659,653.69,652.89,1.13018886]
[1740077627036,3.10643572,653.68,653.07,1.13018886]
[1740077627335,3.10643572,653.67,653.07,1.13018886]
[1740077627538,3.10643572,653.66,653.07,1.13018886]
[1740077627837,3.10643572,653.65,653.07,1.13018886]
[1740077628033,3.10643572,653.64,653.07,1.13018886]
[1740077628235,3.10643572,653.63,653.07,1.13018886]
[1740077628434,3.10643572,653.62,653.07,1.13018886]
[1740077628631,3.10643572,653.61,653.07,1.13018886]
[1740077628834,3.10643572,653.6,653.07,1.13018886]
[1740077629032,5.32438676,653.59,653.07,1.13018886]
[1740077629235,3.10643572,653.58,653.07,1.13018886]
[1740077629435,3.10643572,653.57,653.07,1.13018886]
[1740077629738,3.10643572,653.56,653.07,1.13018886]
[1740077629938,3.10643572,653.55,653.07,1.13018886]
[1740077630239,3.10643572,653.54,653.07,1.13018886]
[1740077630539,5.32438676,653.53,653.07,1.13018886]
[1740077630740,3.10643572,653.52,653.07,1.13018886]
[1740077630939,3.10643572,653.51,653.07,1.13018886]
[1740077631243,3.10643572,653.5,653.07,1.13018886]
[1740077631539,5.32438676,653.49,653.07,1.13018886]
[1740077631740,5.32438676,653.49,653.08,1.13018886]
[1740077631741,3.10643572,653.48,653.08,1.13018886]
[1740077631942,3.10643572,653.47,653.08,1.13018886]
[1740077632145,2.21795104,653.49,653.08,1.13018886]
[1740077632146,3.10643572,653.46,653.08,1.13018886]
[1740077632342,3.10643572,653.45,653.08,1.13018886]
[1740077632542,3.10643572,653.44,653.08,1.13018886]
[1740077632843,3.10643572,653.43,653.08,1.13018886]
[1740077633143,3.10643572,653.42,653.08,1.13018886]
[1740077633337,3.10643572,653.41,653.08,1.13018886]
[1740077633540,3.10643572,653.4,653.08,1.13018886]
[1740077633841,3.10643572,653.39,653.08,1.13018886]
[1740077634042,3.10643572,653.38,653.08,1.13018886]
[1740077634243,3.10643572,653.37,653.08,1.13018886]
[1740077634437,3.10643572,653.36,653.08,1.13018886]
[1740077634637,3.10643572,653.35,652.97,1.13018886]
[1740077634837,3.10643572,653.34,652.97,1.13018886]
[1740077635041,3.10643572,653.33,652.97,1.13018886]
[1740077635344,3.10643572,653.32,652.97,1.13018886]
[1740077635543,3.10643572,653.31,652.97,1.13018886]
[1740077635740,3.10643572,653.3,652.97,1.13018886]
[1740077635940,2.21795104,653.36,652.97,1.13018886]
[1740077636141,3.10714844,653.35,652.97,1.13018886]
[1740077636337,3.10714844,653.34,652.97,1.13018886]
[1740077636542,3.10714844,653.33,652.97,1.13018886]
[1740077636740,3.10714844,653.32,652.97,1.13018886]
[1740077637041,3.10714844,653.31,652.97,1.13018886]
[1740077637240,3.10714844,653.3,652.97,1.13018886]
[1740077637446,2.21795104,653.35,652.97,1.13018886]
[1740077637646,3.10770486,653.34,652.97,1.13018886]
[1740077637848,3.10770486,653.33,652.97,1.13018886]
[1740077638152,3.10770486,653.32,653.02,1.13018886]
[1740077638347,3.10770486,653.31,653.02,1.13018886]
[1740077638650,3.10770486,653.3,653.02,1.13018886]
[1740077638843,3.10770486,653.29,653.02,1.13018886]
[1740077639047,3.10770486,653.28,653.02,1.13018886]
[1740077639246,2.21795104,653.33,653.02,1.13018886]
[1740077639444,3.10840491,653.32,653.02,1.13018886]
[1740077639647,3.10840491,653.31,653.02,1.13018886]
[1740077639848,3.10840491,653.3,653.02,1.13018886]
[1740077640050,3.10840491,653.29,653.02,1.13018886]
[1740077640249,2.21795104,653.32,653.02,1.13018886]
[1740077640444,3.10843922,653.31,653.02,1.13018886]
[1740077640648,3.10843922,653.3,653.02,1.13018886]
[1740077640851,3.10843922,653.29,653.02,1.13018886]
[1740077641051,2.21795104,653.32,653.02,1.13018886]
[1740077641252,3.10844403,653.31,653.02,1.13018886]
[1740077641452,3.10844403,653.3,653.02,1.13018886]
[1740077641751,3.10844403,653.29,653.02,1.13018886]
[1740077641952,2.21795104,653.31,653.02,1.13018886]
[1740077642252,3.10871423,653.3,653.02,1.13018886]
[1740077642452,2.21795104,653.31,653.02,1.13018886]
[1740077642653,2.21795104,653.31,652.54,0.83690932]
[1740077642654,3.10894718,653.3,652.99,1.13018886]
[1740077642853,3.10894718,653.29,652.99,1.13018886]
[1740077643153,2.21795104,653.29,652.99,1.13018886]
[1740077644747,1.116,653.79,652.99,1.13018886]
[1740077644952,3.10938712,653.78,652.99,1.13018886]
[1740077645150,3.10938712,653.77,652.99,1.13018886]
[1740077645354,3.10938712,653.76,652.99,1.13018886]
[1740077645650,3.10938712,653.75,652.99,1.13018886]
[1740077645955,3.10938712,653.74,652.99,1.13018886]
[1740077646154,3.10938712,653.73,652.99,1.13018886]
[1740077646354,3.10938712,653.72,652.99,1.13018886]
[1740077646554,5.32960946,653.71,652.99,1.13018886]
[1740077646756,3.10938712,653.7,652.99,1.13018886]
[1740077646956,3.10938712,653.69,652.99,1.13018886]
[1740077647150,3.10938712,653.68,652.99,1.13018886]
[1740077647353,3.10938712,653.67,652.99,1.13018886]
[1740077647551,3.10938712,653.66,652.99,1.13018886]
[1740077647750,3.10938712,653.65,652.99,1.13018886]
[1740077647953,3.10938712,653.64,652.99,1.13018886]
[1740077648154,3.10938712,653.63,653.14,1.13018886]
[1740077648355,3.10938712,653.62,653.14,1.13018886]
[1740077648555,3.10938712,653.61,653.14,1.13018886]
[1740077648856,3.10938712,653.6,653.14,1.13018886]
[1740077649057,3.10938712,653.59,653.14,1.13018886]
[1740077649350,3.10938712,653.58,653.14,1.13018886]
[1740077649655,3.10938712,653.57,653.14,1.13018886]
[1740077649951,3.10938712,653.56,653.14,1.13018886]
[1740077650156,3.10938712,653.55,653.14,1.13018886]
[1740077650349,3.10938712,653.54,653.14,1.13018886]
[1740077650549,3.10938712,653.53,653.14,1.13018886]
[1740077650755,3.10938712,653.52,653.14,1.13018886]
[1740077650950,3.10938712,653.51,653.14,1.13018886]
[1740077651150,3.10938712,653.5,652.98,1.13018886]
[1740077651455,3.10938712,653.49,652.98,1.13018886]
[1740077651755,3.10938712,653.48,652.98,1.13018886]
[1740077651955,3.10938712,653.47,652.98,1.13018886]
[1740077652255,3.10938712,653.46,652.98,1.13018886]
[1740077652454,3.10938712,653.45,652.98,1.13018886]
[1740077652655,3.10938712,653.44,652.98,1.13018886]
[1740077652855,3.10938712,653.43,652.98,1.13018886]
[1740077653155,3.10938712,653.42,652.98,1.13018886]
[1740077653354,5.32960946,653.41,652.98,1.13018886]
[1740077653550,3.10938712,653.4,652.98,1.13018886]
[1740077653754,3.10938712,653.39,652.98,1.13018886]
[1740077653954,3.10938712,653.38,652.98,1.13018886]
[1740077654156,3.10938712,653.37,652.98,1.13018886]
[1740077654357,3.10938712,653.36,652.98,1.13018886]
[1740077654657,3.10938712,653.35,652.94,1.13018886]
[1740077654860,5.32960946,653.34,652.94,1.13018886]
[1740077655059,3.10938712,653.33,652.94,1.13018886]
[1740077655253,3.10938712,653.32,652.94,1.13018886]
[1740077655456,3.10938712,653.31,652.94,1.13018886]
[1740077655759,3.10938712,653.3,652.94,1.13018886]
[1740077655964,3.10938712,653.29,652.94,1.13018886]
[1740077656262,3.10938712,653.28,652.94,1.13018886]
[1740077656456,3.10938712,653.27,652.94,1.13018886]
[1740077656761,3.10938712,653.26,652.94,1.13018886]
[1740077656961,3.10938712,653.25,652.94,1.13018886]
[1740077657161,3.10938712,653.24,652.94,1.13018886]
[1740077657365,3.10938712,653.23,652.94,1.13018886]
[1740077657661,3.10938712,653.22,652.94,1.13018886]
[1740077657864,3.11176775,653.21,652.73,1.13018886]
[1740077658057,2.22022234,653.25,652.73,1.13018886]
[1740077658261,3.11166846,653.24,652.73,1.13018886]
[1740077658561,3.11166846,653.23,652.73,1.13018886]
[1740077658763,3.11166846,653.22,652.73,1.13018886]
[1740077658957,3.11166846,653.21,652.73,1.13018886]
[1740077659157,3.381,653.79,652.73,1.13018886]
[1740077659357,6.26248451,653.78,652.73,1.13018886]
[1740077659557,3.11165266,653.77,652.73,1.13018886]
[1740077659761,3.11165266,653.76,652.73,1.13018886]
[1740077659963,3.11165266,653.75,652.8,1.13018886]
[1740077660263,3.11165266,653.74,652.8,1.13018886]
[1740077660458,3.11165266,653.73,652.8,1.13018886]
[1740077660662,3.11165266,653.72,652.8,1.13018886]
[1740077660859,3.11165266,653.71,652.8,1.13018886]
[1740077661059,3.11165266,653.7,652.8,1.13018886]
[1740077661264,3.11165266,653.69,652.8,1.13018886]
[1740077661465,3.11165266,653.68,652.8,1.13018886]
[1740077661663,3.11165266,653.67,652.8,1.13018886]
[1740077661862,3.11165266,653.66,652.8,1.13018886]
[1740077662058,3.11165266,653.65,652.8,1.13018886]
[1740077662258,3.11165266,653.64,652.8,1.13018886]
[1740077662460,3.11165266,653.63,652.8,1.13018886]
[1740077662665,3.11165266,653.62,652.8,1.13018886]
[1740077662866,3.11165266,653.61,653.08,1.13018886]
[1740077663065,3.11165266,653.6,653.08,1.13018886]
[1740077663266,3.11165266,653.59,653.08,1.13018886]
[1740077663466,3.11165266,653.58,653.08,1.13018886]
[1740077663667,3.11165266,653.57,653.08,1.13018886]
[1740077663868,3.11165266,653.56,653.08,1.13018886]
[1740077664167,3.11165266,653.55,653.08,1.13018886]
[1740077664361,3.11165266,653.54,653.08,1.13018886]
[1740077664564,3.11165266,653.53,653.08,1.13018886]
[1740077664767,3.11165266,653.52,653.08,1.13018886]
[1740077664962,3.11165266,653.51,653.08,1.13018886]
[1740077665162,3.11165266,653.5,653.1,1.13018886]
[1740077665365,3.11165266,653.49,653.1,1.13018886]
[1740077665567,3.11165266,653.48,653.1,1.13018886]
[1740077665760,3.11165266,653.47,653.1,1.13018886]
[1740077665964,3.11165266,653.46,653.1,1.13018886]
[1740077666163,3.11165266,653.45,653.1,1.13018886]
[1740077666362,3.11165266,653.44,653.1,1.13018886]
[1740077666568,3.11165266,653.43,653.1,1.13018886]
[1740077666869,3.11165266,653.42,653.1,1.13018886]
[1740077667062,3.11165266,653.41,653.1,1.13018886]
[1740077667262,3.11165266,653.4,653.1,1.13018886]
[1740077667462,5.33359963,653.39,653.1,1.13018886]
[1740077667665,3.11165266,653.38,653.1,1.13018886]
[1740077667865,3.11165266,653.37,653.1,1.13018886]
[1740077668068,3.11165266,653.36,653.1,1.13018886]
[1740077668269,3.11165266,653.35,653.1,1.13018886]
[1740077668569,3.11165266,653.34,653.12,1.13018886]
[1740077668764,3.11165266,653.33,653.12,1.13018886]
[1740077668963,3.11165266,653.32,653.12,1.13018886]
[1740077669163,3.11165266,653.31,653.12,1.13018886]
[1740077669368,3.11165266,653.3,653.12,1.13018886]
[1740077669569,3.11165266,653.29,653.12,1.13018886]
[1740077669868,3.11165266,653.28,653.12,1.13018886]
[1740077670070,3.11165266,653.27,653.12,1.13018886]
[1740077670270,3.11165266,653.26,653.12,1.13018886]
[1740077670465,3.11165266,653.25,653.12,1.13018886]
[1740077670770,2.22194697,653.25,653.12,1.13018886]
[1740077671370,2.22194697,653.25,652.9,1.13018886]
[1740077671974,2.265,653.79,652.9,1.13018886]
[1740077672171,6.26016239,653.78,652.9,1.13018886]
[1740077672365,3.1105108,653.77,652.9,1.13018886]
[1740077672569,6.26016239,653.76,652.9,1.13018886]
[1740077672771,3.1105108,653.75,652.9,1.13018886]
[1740077672971,6.26016239,653.74,652.9,1.13018886]
[1740077673171,3.1105108,653.73,652.9,1.13018886]
[1740077673471,6.26016239,653.72,652.9,1.13018886]
[1740077673664,3.1105108,653.71,652.9,1.13018886]
[1740077673869,6.26016239,653.7,652.9,1.13018886]
[1740077674071,3.1105108,653.69,652.9,1.13018886]
[1740077674368,6.26016239,653.68,652.91,1.13018886]
[1740077674570,3.1105108,653.67,652.91,1.13018886]
[1740077674770,6.26016239,653.66,652.91,1.13018886]
[1740077674968,3.1105108,653.65,652.91,1.13018886]
[1740077675174,6.26016239,653.64,652.91,1.13018886]
[1740077675370,3.1105108,653.63,652.91,1.13018886]
[1740077675569,6.26016239,653.62,652.91,1.13018886]
[1740077675766,3.1105108,653.61,652.91,1.13018886]
[1740077675967,6.26016239,653.6,652.91,1.13018886]
[1740077676166,3.1105108,653.59,652.91,1.13018886]
[1740077676370,3.1105108,653.58,652.91,1.13018886]
[1740077676571,3.1105108,653.57,652.91,1.13018886]
[1740077676769,3.1105108,653.56,653.1,1.13018886]
[1740077676973,3.1105108,653.55,653.1,1.13018886]
[1740077677173,3.1105108,653.54,653.1,1.13018886]
[1740077677374,3.1105108,653.53,653.1,1.13018886]
[1740077677571,3.1105108,653.52,653.1,1.13018886]
[1740077677775,3.1105108,653.51,653.1,1.13018886]
[1740077678077,3.1105108,653.5,653.1,1.13018886]
[1740077678377,3.1105108,653.49,653.1,1.13018886]
[1740077678674,3.1105108,653.48,653.1,1.13018886]
[1740077678875,3.1105108,653.47,653.1,1.13018886]
[1740077679177,3.1105108,653.46,653.1,1.13018886]
[1740077679377,3.1105108,653.45,653.1,1.13018886]
[1740077679577,3.1105108,653.44,653.1,1.13018886]
[1740077679775,3.1105108,653.43,653.1,1.13018886]
[1740077679974,3.1105108,653.42,653.1,1.13018886]
[1740077680173,3.1105108,653.41,652.98,1.13018886]
[1740077680372,3.1105108,653.4,652.98,1.13018886]
[1740077680574,2.22102924,653.45,652.98,1.13018886]
[1740077680575,3.1105108,653.39,652.98,1.13018886]
[1740077680778,3.1105108,653.38,652.98,1.13018886]
[1740077680978,3.1105108,653.37,652.98,1.13018886]
[1740077681177,3.1105108,653.36,652.98,1.13018886]
[1740077681477,3.1105108,653.35,652.98,1.13018886]
[1740077681677,3.1105108,653.34,652.98,1.13018886]
[1740077681873,3.1105108,653.33,652.98,1.13018886]
[1740077682071,3.1105108,653.32,652.98,1.13018886]
[1740077682276,3.1105108,653.31,652.98,1.13018886]
[1740077682470,3.1105108,653.3,652.98,1.13018886]
[1740077682671,3.1105108,653.29,652.98,1.13018886]
[1740077682871,3.1105108,653.28,652.98,1.13018886]
[1740077683072,3.1105108,653.27,652.98,1.13018886]
[1740077683277,3.1105108,653.26,652.98,1.13018886]
[1740077683480,3.1105108,653.25,652.98,1.13018886]
[1740077683778,3.1105108,653.24,652.98,1.13018886]
[1740077684079,3.1105108,653.23,652.98,1.13018886]
[1740077684280,2.22102924,653.24,652.98,1.13018886]
[1740077684477,3.1122152,653.23,652.98,1.13018886]
[1740077684773,2.22102924,653.24,652.98,1.13018886]
[1740077685078,3.11227694,653.23,652.98,1.13018886]
[1740077685278,2.22102924,653.24,652.98,1.13018886]
[1740077685473,0.637,653.79,652.98,1.13018886]
[1740077685474,3.11241535,653.23,652.98,1.13018886]
[1740077685778,2.953,653.79,652.77,1.13018886]
[1740077685976,3.11240481,653.78,652.77,1.13018886]
[1740077686178,3.11240481,653.77,652.77,1.13018886]
[1740077686375,3.11240481,653.76,652.77,1.13018886]
[1740077686578,3.11240481,653.75,652.77,1.13018886]
[1740077686779,3.11240481,653.74,652.77,1.13018886]
[1740077686981,3.11240481,653.73,652.77,1.13018886]
[1740077687176,3.11240481,653.72,652.77,1.13018886]
[1740077687377,3.11240481,653.71,652.77,1.13018886]
[1740077687578,3.11240481,653.7,652.77,1.13018886]
[1740077687777,3.11240481,653.69,652.77,1.13018886]
[1740077687981,3.11240481,653.68,652.77,1.13018886]
[1740077688179,2.22238365,653.71,652.7,1.13018886]
[1740077688180,3.11240481,653.67,652.7,1.13018886]
[1740077688380,3.11240481,653.66,652.7,1.13018886]
[1740077688580,3.11240481,653.65,652.7,1.13018886]
[1740077688780,3.11240481,653.64,652.7,1.13018886]
[1740077688976,3.11240481,653.63,652.7,1.13018886]
[1740077689178,3.11240481,653.62,652.7,1.13018886]
[1740077689373,3.11240481,653.61,652.7,1.13018886]
[1740077689575,3.11240481,653.6,652.7,1.13018886]
[1740077689777,3.11240481,653.59,652.7,1.13018886]
[1740077690083,3.11240481,653.58,652.71,1.13018886]
[1740077690382,3.11240481,653.57,652.71,1.13018886]
[1740077690583,3.11240481,653.56,652.71,1.13018886]
[1740077690784,3.11240481,653.55,652.71,1.13018886]
[1740077690983,3.11240481,653.54,652.71,1.13018886]
[1740077691283,3.11240481,653.53,652.71,1.13018886]
[1740077691483,3.11240481,653.52,652.71,1.13018886]
[1740077691679,3.11240481,653.51,652.71,1.13018886]
[1740077691983,3.11240481,653.5,652.71,1.13018886]
[1740077692177,3.11240481,653.49,652.92,1.13018886]
[1740077692380,3.11240481,653.48,652.92,1.13018886]
[1740077692778,2.22238365,653.55,652.92,1.13018886]
[1740077692976,2.316,653.79,652.92,1.13018886]
[1740077693376,3.11301956,653.78,652.92,1.13018886]
[1740077693578,3.11301956,653.77,652.92,1.13018886]
[1740077693780,3.11301956,653.76,652.92,1.13018886]
[1740077693978,3.11301956,653.75,652.92,1.13018886]
[1740077694181,3.11301956,653.74,652.92,1.13018886]
[1740077694380,3.11301956,653.73,652.92,1.13018886]
[1740077694578,3.11301956,653.72,652.92,1.13018886]
[1740077694782,3.11301956,653.71,652.91,1.13018886]
[1740077694980,3.11301956,653.7,652.91,1.13018886]
[1740077695187,3.11301956,653.69,652.91,1.13018886]
[1740077695484,2.22286167,653.78,652.91,1.13018886]
[1740077695485,3.11301956,653.68,652.91,1.13018886]
[1740077695683,3.11301956,653.67,652.91,1.13018886]
[1740077695884,3.11301956,653.66,652.91,1.13018886]
[1740077696080,3.11301956,653.65,652.91,1.13018886]
[1740077696282,3.11301956,653.64,652.91,1.13018886]
[1740077696484,3.11301956,653.63,652.91,1.13018886]
[1740077696681,3.11301956,653.62,652.91,1.13018886]
[1740077696881,3.11301956,653.61,652.91,1.13018886]
[1740077697184,3.11301956,653.6,652.91,1.13018886]
[1740077697484,3.11301956,653.59,652.91,1.13018886]
[1740077697682,3.11301956,653.58,652.91,1.13018886]
[1740077697881,3.11301956,653.57,652.91,1.13018886]
[1740077698081,5.33588123,653.56,652.91,1.13018886]
[1740077698287,3.11301956,653.55,652.89,1.13018886]
[1740077698587,3.11301956,653.54,652.89,1.13018886]
[1740077698786,3.11301956,653.53,652.89,1.13018886]
[1740077698980,3.11301956,653.52,652.89,1.13018886]
[1740077699183,3.11301956,653.51,652.89,1.13018886]
[1740077699382,5.33588123,653.5,652.89,1.13018886]
[1740077699580,3.11301956,653.49,652.89,1.13018886]
[1740077699780,3.11301956,653.48,652.89,1.13018886]
[1740077699981,3.11301956,653.47,652.89,1.13018886]
[1740077700185,3.11301956,653.46,652.89,1.13018886]
[1740077700388,3.11301956,653.45,652.89,1.13018886]
[1740077700586,3.11301956,653.44,653.01,1.13018886]
[1740077700789,3.11301956,653.43,653.01,1.13018886]
[1740077701089,5.33588123,653.42,653.01,1.13018886]
[1740077701280,3.11301956,653.41,653.01,1.13018886]
[1740077701479,3.11301956,653.4,653.01,1.13018886]
[1740077701682,2.22286167,653.42,653.01,1.13018886]
[1740077701683,3.11301956,653.39,653.01,1.13018886]
[1740077701882,3.11301956,653.38,653.01,1.13018886]
[1740077702183,3.11301956,653.37,653.01,1.13018886]
[1740077702387,3.11301956,653.36,653.01,1.13018886]
[1740077702587,3.11301956,653.35,653.01,1.13018886]
[1740077702788,3.11301956,653.34,653.01,1.13018886]
[1740077702989,3.11301956,653.33,653.01,1.13018886]
[1740077703191,3.11301956,653.32,652.77,1.13018886]
[1740077703391,3.11301956,653.31,652.77,1.13018886]
[1740077703690,3.11301956,653.3,652.77,1.13018886]
[1740077703891,3.11301956,653.29,652.77,1.13018886]
[1740077704190,3.11301956,653.28,652.77,1.13018886]
[1740077704391,3.11301956,653.27,652.77,1.13018886]
[1740077704592,3.11301956,653.26,652.77,1.13018886]
[1740077704892,3.11301956,653.25,652.77,1.13018886]
[1740077705193,3.11301956,653.25,652.55,1.12967756]
[1740077705194,3.11301956,653.24,652.76,1.13018886]
[1740077705389,3.11301956,653.23,652.76,1.13018886]
[1740077705589,3.11301956,653.22,652.76,1.13018886]
[1740077705788,3.11301956,653.21,652.76,1.13018886]
[1740077705990,3.11301956,653.2,652.76,1.13018886]
[1740077706294,3.11301956,653.19,652.76,1.13018886]
[1740077706494,3.11301956,653.18,652.76,1.13018886]
[1740077706689,2.22286167,653.23,652.76,1.13018886]
[1740077706893,3.11351646,653.22,652.76,1.13018886]
[1740077707192,3.11351646,653.21,652.76,1.13018886]
[1740077707393,2.22286167,653.22,652.76,1.13018886]
[1740077707394,3.11351646,653.2,652.76,1.13018886]
[1740077707593,2.22286167,653.22,652.76,1.13018886]
[1740077707797,3.11354723,653.21,652.79,1.13018886]
[1740077708092,2.22286167,653.22,652.79,1.13018886]
[1740077708296,3.11342384,653.21,652.79,1.13018886]
[1740077708596,2.22286167,653.22,652.79,1.13018886]
[1740077708891,1.307,653.58,652.79,1.13018886]
[1740077709095,3.11326004,653.57,652.79,1.13018886]
[1740077709297,3.11326004,653.56,652.79,1.13018886]
[1740077709496,3.11326004,653.55,652.79,1.13018886]
[1740077709694,3.11326004,653.54,652.79,1.13018886]
[1740077709891,3.11326004,653.53,652.79,1.13018886]
[1740077710095,3.11326004,653.52,652.79,1.13018886]
[1740077710395,3.11326004,653.51,652.79,1.13018886]
[1740077710595,3.11326004,653.5,652.84,1.13018886]
[1740077710895,2.22290013,653.57,652.84,1.13018886]
[1740077710896,3.11326004,653.49,652.84,1.13018886]
[1740077711095,5.33616017,653.48,652.84,1.13018886]
[1740077711295,3.11326004,653.47,652.84,1.13018886]
[1740077711496,3.11326004,653.46,652.84,1.13018886]
[1740077711696,3.11326004,653.45,652.84,1.13018886]
[1740077711898,3.11326004,653.44,652.84,1.13018886]
[1740077712197,3.11326004,653.43,652.84,1.13018886]
[1740077712393,3.11326004,653.42,652.84,1.13018886]
[1740077712594,3.11326004,653.41,652.84,1.13018886]
[1740077712793,5.33616017,653.4,652.84,1.13018886]
[1740077712996,3.11326004,653.39,652.84,1.13018886]
[1740077713198,3.11326004,653.38,652.91,1.13018886]
[1740077713399,3.11326004,653.37,652.91,1.13018886]
[1740077713698,3.11326004,653.36,652.91,1.13018886]
[1740077713997,3.11326004,653.35,652.91,1.13018886]
[1740077714295,3.11326004,653.34,652.91,1.13018886]
[1740077714494,3.11326004,653.33,652.91,1.13018886]
[1740077714693,3.11326004,653.32,652.91,1.13018886]